fUSD/lending_fUSD_20260629
["ID","MTS","AMOUNT","RATE_DAILY","PERIOD"]
[426691977,1782747045000,-240.6652596,0.000299,2]
[426691990,1782747045000,-240.6652596,0.000299,2]
[426691992,1782747045000,-240.6652596,0.000299,2]
[426692002,1782747045000,-9999.88,0.0003,2]
[426692003,1782747045000,-10638.52,0.0003,2]
[426692000,1782747045000,-14351.62,0.0003,2]
[426691994,1782747045000,-240.6652596,0.000299,2]
[426692001,1782747045000,-12499.9,0.0003,2]
[426691997,1782747045000,-305.33,0.00029973,2]
[426691996,1782747045000,-240.6652596,0.000299,2]
[426691999,1782747045000,-14999.99,0.0003,2]
[426691993,1782747045000,-240.6652596,0.000299,2]
[426692005,1782747045000,-222.82279536,0.0003,2]
[426691995,1782747045000,-240.6652596,0.000299,2]
[426691998,1782747045000,-22499.9,0.0003,2]
[426692075,1782747046000,-305.11921922,0.0003036,2]
[426692070,1782747046000,-781.0,0.0003016,2]
[426692068,1782747046000,-305.32928048,0.00030137,2]
[426692074,1782747046000,-151.09934801,0.00030344,2]
[426692072,1782747046000,-502.0,0.00030164,14]
[426692066,1782747046000,-152.5325826,0.00030137,2]
[426692067,1782747046000,-1000.0,0.00030137,4]
[426692076,1782747046000,-251.0,0.0003036,2]
[426692073,1782747046000,-152.5325826,0.0003018,5]
[426692071,1782747046000,-322.0,0.0003016,2]
[426692069,1782747046000,-13658.64786751,0.00030159,2]
[426692077,1782747046000,-251.0,0.0003036,2]
[426692089,1782747046000,-251.0,0.0003069,2]
[426692088,1782747046000,-251.0,0.0003069,2]
[426692087,1782747046000,-251.0,0.0003069,2]
[426692079,1782747046000,-10805.54579392,0.000304,2]
[426692082,1782747046000,-266.46097856,0.00030587,2]
[426692085,1782747046000,-2000.0,0.0003059,2]
[426692083,1782747046000,-352.64707502,0.00030587,2]
[426692080,1782747046000,-152.5325826,0.00030477,7]
[426692086,1782747046000,-151.09934801,0.0003068,2]
[426692081,1782747046000,-2000.0,0.00030574,7]
[426692064,1782747046000,-158.0630318,0.00030137,2]
[426692084,1782747046000,-1781.35856451,0.00030587,2]
[426692078,1782747046000,-251.0,0.0003036,2]
[426692065,1782747046000,-316.12606361,0.00030137,2]
[426692053,1782747046000,-300.0,0.00030136,2]
[426692061,1782747046000,-185.67251033,0.00030136,2]
[426692090,1782747046000,-251.0,0.0003069,2]
[426692041,1782747046000,-1000.13,0.00030136,2]
[426692038,1782747046000,-1000.13,0.00030136,2]
[426692040,1782747046000,-1000.13,0.00030136,2]
[426692039,1782747046000,-1000.13,0.00030136,2]
[426692037,1782747046000,-1000.13,0.00030136,2]
[426692042,1782747046000,-1000.13,0.00030136,2]
[426692043,1782747046000,-1000.19777974,0.00030136,2]
[426692044,1782747046000,-500.0,0.00030136,2]
[426692045,1782747046000,-502.7070817,0.00030136,2]
[426692047,1782747046000,-300.0,0.00030136,2]
[426692054,1782747046000,-300.0,0.00030136,2]
[426692050,1782747046000,-300.0,0.00030136,2]
[426692052,1782747046000,-300.0,0.00030136,2]
[426692051,1782747046000,-300.0,0.00030136,2]
[426692048,1782747046000,-300.0,0.00030136,2]
[426692049,1782747046000,-300.0,0.00030136,2]
[426692046,1782747046000,-402.18706998,0.00030136,2]
[426692055,1782747046000,-300.0,0.00030136,2]
[426692056,1782747046000,-300.0,0.00030136,2]
[426692059,1782747046000,-300.0,0.00030136,2]
[426692057,1782747046000,-300.0,0.00030136,2]
[426692060,1782747046000,-300.0,0.00030136,2]
[426692058,1782747046000,-300.0,0.00030136,2]
[426692062,1782747046000,-218.48299926,0.00030137,2]
[426692063,1782747046000,-436.96599853,0.00030137,2]
[426692094,1782747046000,-251.0,0.0003069,2]
[426692092,1782747046000,-251.0,0.0003069,2]
[426692097,1782747046000,-3805.95441897,0.00030721,28]
[426692129,1782747046000,-251.0,0.0003102,2]
[426692134,1782747046000,-437.37,0.000311,7]
[426692133,1782747046000,-251.0,0.0003102,2]
[426692131,1782747046000,-251.0,0.0003102,2]
[426692132,1782747046000,-251.0,0.0003102,2]
[426692135,1782747046000,-502.0,0.00031104,14]
[426692136,1782747046000,-497.16,0.00031115,2]
[426692149,1782747046000,-685.34,0.00031366,60]
[426692139,1782747046000,-500.0,0.00031124,21]
[426692150,1782747046000,-13658.64786751,0.00031458,2]
[426692138,1782747046000,-500.0,0.00031124,21]
[426692142,1782747046000,-10805.54579392,0.000313,2]
[426692144,1782747046000,-251.0,0.0003135,2]
[426692141,1782747046000,-2478.2374671,0.00031292,2]
[426692147,1782747046000,-251.0,0.0003135,2]
[426692143,1782747046000,-251.0,0.0003135,2]
[426692145,1782747046000,-251.0,0.0003135,2]
[426692146,1782747046000,-251.0,0.0003135,2]
[426692148,1782747046000,-151.09934801,0.00031352,2]
[426692152,1782747046000,-500.0,0.00031599,15]
[426692151,1782747046000,-854.57,0.00031507,6]
[426692153,1782747046000,-574.24997663,0.00031599,15]
[426692156,1782747046000,-151.09934801,0.00031688,2]
[426692155,1782747046000,-166.94677474,0.00031669,2]
[426692093,1782747046000,-251.0,0.0003069,2]
[426692137,1782747046000,-166.23,0.00031115,2]
[426692130,1782747046000,-251.0,0.0003102,2]
[426692140,1782747046000,-152.5325826,0.00031286,10]
[426692127,1782747046000,-251.0,0.0003102,2]
[426692154,1782747046000,-10805.54579392,0.000316,2]
[426692128,1782747046000,-251.0,0.0003102,2]
[426692095,1782747046000,-10805.54579392,0.000307,2]
[426692096,1782747046000,-155.0,0.00030705,30]
[426692100,1782747046000,-383.449,0.00030722,27]
[426692098,1782747046000,-5149.584,0.00030721,28]
[426692099,1782747046000,-6020.01,0.00030722,27]
[426692103,1782747046000,-158.0,0.00030728,30]
[426692091,1782747046000,-251.0,0.0003069,2]
[426692102,1782747046000,-158.0,0.00030728,30]
[426692105,1782747046000,-157.0,0.00030728,30]
[426692115,1782747046000,-150.0,0.00030841,2]
[426692119,1782747046000,-10805.54579392,0.00031,2]
[426692101,1782747046000,-154.0,0.00030728,30]
[426692111,1782747046000,-157.0,0.00030733,30]
[426692104,1782747046000,-151.0,0.00030728,30]
[426692116,1782747046000,-333.83,0.00030866,120]
[426692117,1782747046000,-319.57,0.00030867,120]
[426692106,1782747046000,-154.0,0.00030728,30]
[426692125,1782747046000,-151.09934801,0.00031016,2]
[426692112,1782747046000,-398.0,0.00030733,30]
[426692113,1782747046000,-1580.07,0.000308,7]
[426692109,1782747046000,-153.0,0.00030733,30]
[426692114,1782747046000,-1859.14,0.000308,7]
[426692121,1782747046000,-160.0,0.00031,120]
[426692107,1782747046000,-390.0,0.00030733,30]
[426692123,1782747046000,-1000.0,0.00031,7]
[426692193,1782747047000,-500.0,0.00032058,23]
[426692187,1782747047000,-182.72727272,0.00032,7]
[426692191,1782747047000,-159.89118465,0.00032056,21]
[426692200,1782747047000,-856.98,0.00032262,2]
[426692197,1782747047000,-13798.21,0.00032232,7]
[426692192,1782747047000,-150.0,0.00032058,30]
[426692194,1782747047000,-150.0,0.00032159,30]
[426692195,1782747047000,-1510.23,0.00032232,7]
[426692190,1782747047000,-502.0,0.00032045,15]
[426692196,1782747047000,-460.04,0.00032232,7]
[426692210,1782747047000,-150.0,0.00032548,30]
[426692198,1782747047000,-150.0,0.00032252,30]
[426692203,1782747047000,-151.09934801,0.0003236,2]
[426692214,1782747047000,-150.0,0.00032666,30]
[426692199,1782747047000,-150.0,0.00032261,30]
[426692201,1782747047000,-437.37,0.000323,7]
[426692206,1782747047000,-150.0,0.000324,30]
[426692211,1782747047000,-150.0,0.00032565,30]
[426692208,1782747047000,-150.0,0.00032463,30]
[426692205,1782747047000,-150.0,0.00032383,2]
[426692204,1782747047000,-150.0,0.00032362,30]
[426692207,1782747047000,-150.0,0.00032463,30]
[426692209,1782747047000,-333.83,0.0003251,120]
[426692212,1782747047000,-150.0,0.00032648,2]
[426692223,1782747047000,-157.0,0.00032728,30]
[426692216,1782747047000,-155.0,0.00032705,30]
[426692189,1782747047000,-151.09934801,0.00032024,2]
[426692202,1782747047000,-150.0,0.00032351,30]
[426692188,1782747047000,-437934.63797942,0.00032,2]
[426692157,1782747047000,-155.0,0.00031705,30]
[426692184,1782747047000,-150.0,0.00031956,30]
[426692162,1782747047000,-154.0,0.00031728,30]
[426692158,1782747047000,-154.0,0.00031728,30]
[426692217,1782747047000,-237.99621608,0.00032711,2]
[426692160,1782747047000,-151.0,0.00031728,30]
[426692159,1782747047000,-158.0,0.00031728,30]
[426692163,1782747047000,-390.0,0.00031733,30]
[426692167,1782747047000,-271.51,0.00031769,2]
[426692166,1782747047000,-398.0,0.00031733,30]
[426692164,1782747047000,-153.0,0.00031733,30]
[426692173,1782747047000,-150.0,0.00031956,30]
[426692172,1782747047000,-1859.14,0.000319,7]
[426692174,1782747047000,-151.14744993,0.00031956,30]
[426692165,1782747047000,-157.0,0.00031733,30]
[426692170,1782747047000,-10805.54579392,0.000319,2]
[426692168,1782747047000,-315.55,0.00031798,3]
[426692169,1782747047000,-701.84285937,0.00031801,2]
[426692171,1782747047000,-1580.07,0.000319,7]
[426692186,1782747047000,-5623.6145,0.00032,2]
[426692176,1782747047000,-150.0,0.00031956,30]
[426692175,1782747047000,-151.14861335,0.00031956,30]
[426692177,1782747047000,-150.0,0.00031956,30]
[426692182,1782747047000,-150.0,0.00031956,30]
[426692183,1782747047000,-151.13233997,0.00031956,30]
[426692178,1782747047000,-150.0,0.00031956,30]
[426692181,1782747047000,-283.83603472,0.00031956,30]
[426692185,1782747047000,-150.0,0.00031956,30]
[426692179,1782747047000,-150.0,0.00031956,30]
[426692180,1782747047000,-150.0,0.00031956,30]
[426692213,1782747047000,-150.0,0.00032666,30]
[426692161,1782747047000,-157.0,0.00031728,30]
[426692218,1782747047000,-233.20134942,0.0003272,2]
[426692249,1782747047000,-166.0,0.00032984,7]
[426692260,1782747047000,-500.0,0.00033,20]
[426692253,1782747047000,-500.0,0.00033,20]
[426692251,1782747047000,-500.0,0.00033,20]
[426692252,1782747047000,-500.0,0.00033,20]
[426692254,1782747047000,-500.0,0.00033,20]
[426692255,1782747047000,-500.0,0.00033,20]
[426692259,1782747047000,-500.0,0.00033,20]
[426692256,1782747047000,-500.0,0.00033,20]
[426692258,1782747047000,-500.0,0.00033,20]
[426692257,1782747047000,-500.0,0.00033,20]
[426692262,1782747047000,-500.0,0.00033,20]
[426692265,1782747047000,-500.0,0.00033,20]
[426692268,1782747047000,-500.0,0.00033,20]
[426692263,1782747047000,-500.0,0.00033,20]
[426692267,1782747047000,-500.0,0.00033,20]
[426692266,1782747047000,-500.0,0.00033,20]
[426692272,1782747047000,-500.0,0.00033,20]
[426692271,1782747047000,-500.0,0.00033,20]
[426692264,1782747047000,-500.0,0.00033,20]
[426692270,1782747047000,-500.0,0.00033,20]
[426692273,1782747047000,-500.0,0.00033,20]
[426692269,1782747047000,-500.0,0.00033,20]
[426692275,1782747047000,-500.0,0.00033,20]
[426692274,1782747047000,-500.0,0.00033,20]
[426692277,1782747047000,-500.0,0.00033,20]
[426692278,1782747047000,-500.0,0.00033,20]
[426692250,1782747047000,-502.0,0.00032985,16]
[426692261,1782747047000,-500.0,0.00033,20]
[426692276,1782747047000,-500.0,0.00033,20]
[426692244,1782747047000,-500.0,0.00032877,2]
[426692246,1782747047000,-2000.0,0.0003293,7]
[426692219,1782747047000,-233.69927788,0.00032727,2]
[426692222,1782747047000,-151.0,0.00032728,30]
[426692221,1782747047000,-158.0,0.00032728,30]
[426692220,1782747047000,-154.0,0.00032728,30]
[426692225,1782747047000,-390.0,0.00032733,30]
[426692224,1782747047000,-164.0,0.00032728,30]
[426692235,1782747047000,-152.5325826,0.00032861,12]
[426692226,1782747047000,-153.0,0.00032733,30]
[426692227,1782747047000,-157.0,0.00032733,30]
[426692228,1782747047000,-398.0,0.00032733,30]
[426692229,1782747047000,-150.0,0.00032745,30]
[426692234,1782747047000,-150.0,0.00032844,30]
[426692230,1782747047000,-13658.64786751,0.00032757,2]
[426692215,1782747047000,-151.09934801,0.00032697,2]
[426692232,1782747047000,-300.65,0.00032801,3]
[426692233,1782747047000,-150.0,0.00032844,30]
[426692243,1782747047000,-2066.7244798,0.00032876,2]
[426692245,1782747047000,-500.0,0.00032877,2]
[426692237,1782747047000,-500.0,0.00032876,14]
[426692242,1782747047000,-3000.0,0.00032876,2]
[426692240,1782747047000,-3000.0,0.00032876,2]
[426692238,1782747047000,-3000.0,0.00032876,2]
[426692231,1782747047000,-150.0,0.00032768,30]
[426692247,1782747047000,-150.0,0.00032971,30]
[426692236,1782747047000,-150.0,0.00032869,30]
[426692248,1782747047000,-150.0,0.00032971,30]
[426692239,1782747047000,-3000.0,0.00032876,2]
[426692241,1782747047000,-3000.0,0.00032876,2]
[426692312,1782747048000,-500.0,0.00033,20]
[426692309,1782747048000,-500.0,0.00033,20]
[426692311,1782747048000,-500.0,0.00033,20]
[426692318,1782747048000,-500.0,0.00033,20]
[426692310,1782747048000,-500.0,0.00033,20]
[426692315,1782747048000,-500.0,0.00033,20]
[426692320,1782747048000,-216.58458871,0.00033,7]
[426692316,1782747048000,-500.0,0.00033,20]
[426692314,1782747048000,-500.0,0.00033,20]
[426692308,1782747048000,-500.0,0.00033,20]
[426692313,1782747048000,-500.0,0.00033,20]
[426692325,1782747048000,-150.0,0.00033072,30]
[426692319,1782747048000,-440.05,0.00033,20]
[426692332,1782747048000,-2280.56935788,0.00033198,7]
[426692322,1782747048000,-508.0,0.00033032,3]
[426692333,1782747048000,-150.0,0.00033275,30]
[426692307,1782747048000,-500.0,0.00033,20]
[426692321,1782747048000,-209.0,0.00033003,3]
[426692323,1782747048000,-151.09934801,0.00033033,2]
[426692326,1782747048000,-1580.07,0.000331,30]
[426692324,1782747048000,-515.13690168,0.0003306,60]
[426692331,1782747048000,-150.0,0.00033174,30]
[426692327,1782747048000,-1859.14,0.000331,30]
[426692330,1782747048000,-150.0,0.0003314,30]
[426692317,1782747048000,-500.0,0.00033,20]
[426692305,1782747048000,-500.0,0.00033,20]
[426692300,1782747048000,-500.0,0.00033,20]
[426692304,1782747048000,-500.0,0.00033,20]
[426692328,1782747048000,-185.12719019,0.000331,30]
[426692286,1782747048000,-500.0,0.00033,20]
[426692283,1782747048000,-500.0,0.00033,20]
[426692285,1782747048000,-500.0,0.00033,20]
[426692284,1782747048000,-500.0,0.00033,20]
[426692280,1782747048000,-500.0,0.00033,20]
[426692282,1782747048000,-500.0,0.00033,20]
[426692281,1782747048000,-500.0,0.00033,20]
[426692279,1782747048000,-500.0,0.00033,20]
[426692287,1782747048000,-500.0,0.00033,20]
[426692295,1782747048000,-500.0,0.00033,20]
[426692306,1782747048000,-500.0,0.00033,20]
[426692297,1782747048000,-500.0,0.00033,20]
[426692296,1782747048000,-500.0,0.00033,20]
[426692293,1782747048000,-500.0,0.00033,20]
[426692291,1782747048000,-500.0,0.00033,20]
[426692288,1782747048000,-500.0,0.00033,20]
[426692292,1782747048000,-500.0,0.00033,20]
[426692289,1782747048000,-500.0,0.00033,20]
[426692299,1782747048000,-500.0,0.00033,20]
[426692301,1782747048000,-500.0,0.00033,20]
[426692298,1782747048000,-500.0,0.00033,20]
[426692302,1782747048000,-500.0,0.00033,20]
[426692303,1782747048000,-500.0,0.00033,20]
[426692294,1782747048000,-500.0,0.00033,20]
[426692290,1782747048000,-500.0,0.00033,20]
[426692329,1782747048000,-150.0,0.0003314,30]
[426692337,1782747048000,-2478.2374671,0.00033319,2]
[426692360,1782747048000,-1737.06,0.00033669,7]
[426692366,1782747048000,-1000.0,0.00033697,2]
[426692361,1782747048000,-150.0,0.00033681,30]
[426692367,1782747048000,-1000.0,0.00033697,2]
[426692368,1782747048000,-1825.93,0.00033697,2]
[426692369,1782747048000,-151.09934801,0.00033705,2]
[426692365,1782747048000,-1000.0,0.00033697,2]
[426692372,1782747048000,-154.0,0.00033728,30]
[426692370,1782747048000,-162.40577252,0.00033705,30]
[426692374,1782747048000,-151.0,0.00033728,30]
[426692373,1782747048000,-158.0,0.00033728,30]
[426692364,1782747048000,-1000.0,0.00033697,2]
[426692383,1782747048000,-151.0,0.0003374,14]
[426692384,1782747048000,-1101.0618519,0.00033751,2]
[426692375,1782747048000,-157.0,0.00033728,30]
[426692379,1782747048000,-390.0,0.00033733,30]
[426692378,1782747048000,-150.0,0.00033732,30]
[426692380,1782747048000,-153.0,0.00033733,30]
[426692382,1782747048000,-398.0,0.00033733,30]
[426692381,1782747048000,-157.0,0.00033733,30]
[426692385,1782747048000,-300.0,0.00033751,2]
[426692387,1782747048000,-300.0,0.00033751,2]
[426692386,1782747048000,-300.0,0.00033751,2]
[426692334,1782747048000,-150.0,0.00033288,30]
[426692376,1782747048000,-150.0,0.00033732,30]
[426692371,1782747048000,-2442.0,0.00033727,10]
[426692377,1782747048000,-150.0,0.00033732,30]
[426692362,1782747048000,-167.8450738,0.00033687,2]
[426692335,1782747048000,-437.37,0.000333,7]
[426692363,1782747048000,-301.8190117,0.00033687,2]
[426692336,1782747048000,-341.516641,0.000333,8]
[426692345,1782747048000,-1195.58,0.000335,30]
[426692340,1782747048000,-150.0,0.00033376,30]
[426692342,1782747048000,-150.0,0.00033436,30]
[426692343,1782747048000,-150.0,0.00033478,30]
[426692344,1782747048000,-150.0,0.00033478,30]
[426692339,1782747048000,-151.09934801,0.00033369,2]
[426692341,1782747048000,-150.0,0.00033376,30]
[426692347,1782747048000,-150.0,0.00033534,30]
[426692357,1782747048000,-1000.0,0.00033661,2]
[426692338,1782747048000,-333.83,0.00033332,120]
[426692349,1782747048000,-1195.58,0.00033575,30]
[426692359,1782747048000,-158.71,0.00033669,120]
[426692358,1782747048000,-1883.96,0.00033661,2]
[426692354,1782747048000,-856.98,0.00033636,2]
[426692351,1782747048000,-401.448,0.0003358,7]
[426692353,1782747048000,-1195.58,0.000336,30]
[426692352,1782747048000,-841.69,0.0003358,7]
[426692355,1782747048000,-65502.75413252,0.0003366,2]
[426692350,1782747048000,-150.0,0.00033579,30]
[426692346,1782747048000,-1195.58,0.00033525,30]
[426692348,1782747048000,-1195.58,0.0003355,30]
[426692356,1782747048000,-1000.0,0.00033661,2]
[426692425,1782747049000,-300.0,0.00033751,2]
[426692430,1782747049000,-300.0,0.00033751,2]
[426692431,1782747049000,-300.0,0.00033751,2]
[426692423,1782747049000,-300.0,0.00033751,2]
[426692427,1782747049000,-300.0,0.00033751,2]
[426692422,1782747049000,-300.0,0.00033751,2]
[426692432,1782747049000,-954.30228826,0.00033751,2]
[426692421,1782747049000,-300.0,0.00033751,2]
[426692415,1782747049000,-300.0,0.00033751,2]
[426692418,1782747049000,-302.16203863,0.00033751,2]
[426692426,1782747049000,-300.0,0.00033751,2]
[426692433,1782747049000,-1807.30940739,0.00033751,2]
[426692424,1782747049000,-300.0,0.00033751,2]
[426692446,1782747049000,-300.0,0.00033751,2]
[426692429,1782747049000,-300.0,0.00033751,2]
[426692434,1782747049000,-300.0,0.00033751,2]
[426692436,1782747049000,-576.43989485,0.00033751,2]
[426692435,1782747049000,-300.0,0.00033751,2]
[426692437,1782747049000,-300.00000001,0.00033751,2]
[426692439,1782747049000,-311.22255108,0.00033751,2]
[426692438,1782747049000,-300.0,0.00033751,2]
[426692444,1782747049000,-300.0,0.00033751,2]
[426692442,1782747049000,-300.0,0.00033751,2]
[426692443,1782747049000,-300.0,0.00033751,2]
[426692440,1782747049000,-300.0,0.00033751,2]
[426692441,1782747049000,-569.01654071,0.00033751,2]
[426692417,1782747049000,-300.0,0.00033751,2]
[426692428,1782747049000,-345.7536,0.00033751,2]
[426692445,1782747049000,-300.0,0.00033751,2]
[426692389,1782747049000,-300.0,0.00033751,2]
[426692409,1782747049000,-300.0,0.00033751,2]
[426692395,1782747049000,-300.0,0.00033751,2]
[426692391,1782747049000,-300.0,0.00033751,2]
[426692388,1782747049000,-300.0,0.00033751,2]
[426692392,1782747049000,-300.0,0.00033751,2]
[426692390,1782747049000,-300.0,0.00033751,2]
[426692393,1782747049000,-300.0,0.00033751,2]
[426692394,1782747049000,-300.0,0.00033751,2]
[426692397,1782747049000,-495.28773916,0.00033751,2]
[426692407,1782747049000,-300.50056821,0.00033751,2]
[426692400,1782747049000,-300.0,0.00033751,2]
[426692399,1782747049000,-300.0,0.00033751,2]
[426692398,1782747049000,-496.30087066,0.00033751,2]
[426692396,1782747049000,-300.0,0.00033751,2]
[426692405,1782747049000,-300.0,0.00033751,2]
[426692403,1782747049000,-300.0,0.00033751,2]
[426692401,1782747049000,-300.0,0.00033751,2]
[426692402,1782747049000,-300.0,0.00033751,2]
[426692404,1782747049000,-607.84242655,0.00033751,2]
[426692406,1782747049000,-300.0,0.00033751,2]
[426692408,1782747049000,-300.0,0.00033751,2]
[426692412,1782747049000,-300.0,0.00033751,2]
[426692413,1782747049000,-300.0,0.00033751,2]
[426692414,1782747049000,-730.12015411,0.00033751,2]
[426692410,1782747049000,-300.0,0.00033751,2]
[426692419,1782747049000,-300.0,0.00033751,2]
[426692420,1782747049000,-300.0,0.00033751,2]
[426692411,1782747049000,-536.77715252,0.00033751,2]
[426692416,1782747049000,-300.0,0.00033751,2]
[426692447,1782747049000,-300.0,0.00033751,2]
[426692478,1782747049000,-300.0,0.00033751,2]
[426692449,1782747049000,-300.0,0.00033751,2]
[426692479,1782747049000,-495.28773916,0.00033751,2]
[426692487,1782747049000,-300.0,0.00033751,2]
[426692484,1782747049000,-300.0,0.00033751,2]
[426692486,1782747049000,-607.84242655,0.00033751,2]
[426692485,1782747049000,-300.0,0.00033751,2]
[426692495,1782747049000,-730.12015411,0.00033751,2]
[426692488,1782747049000,-300.0,0.00033751,2]
[426692489,1782747049000,-301.01762354,0.00033751,2]
[426692493,1782747049000,-300.0,0.00033751,2]
[426692490,1782747049000,-300.0,0.00033751,2]
[426692494,1782747049000,-356.21930437,0.00033751,2]
[426692491,1782747049000,-300.0,0.00033751,2]
[426692492,1782747049000,-536.77715252,0.00033751,2]
[426692497,1782747049000,-300.0,0.00033751,2]
[426692499,1782747049000,-300.0,0.00033751,2]
[426692498,1782747049000,-303.73373497,0.00033751,2]
[426692496,1782747049000,-300.0,0.00033751,2]
[426692507,1782747049000,-300.0,0.00033751,2]
[426692500,1782747049000,-302.16203863,0.00033751,2]
[426692501,1782747049000,-300.0,0.00033751,2]
[426692502,1782747049000,-300.0,0.00033751,2]
[426692504,1782747049000,-300.0,0.00033751,2]
[426692506,1782747049000,-300.0,0.00033751,2]
[426692505,1782747049000,-300.0,0.00033751,2]
[426692508,1782747049000,-300.0,0.00033751,2]
[426692509,1782747049000,-345.7536,0.00033751,2]
[426692450,1782747049000,-584.66801755,0.00033751,2]
[426692481,1782747049000,-368.9698289,0.00033751,2]
[426692482,1782747049000,-300.0,0.00033751,2]
[426692503,1782747049000,-300.0,0.00033751,2]
[426692476,1782747049000,-300.0,0.00033751,2]
[426692477,1782747049000,-300.0,0.00033751,2]
[426692448,1782747049000,-513.95923093,0.00033751,2]
[426692458,1782747049000,-300.0,0.00033751,2]
[426692451,1782747049000,-300.0,0.00033751,2]
[426692455,1782747049000,-300.0,0.00033751,2]
[426692457,1782747049000,-300.0,0.00033751,2]
[426692453,1782747049000,-300.0,0.00033751,2]
[426692454,1782747049000,-300.0,0.00033751,2]
[426692456,1782747049000,-300.0,0.00033751,2]
[426692470,1782747049000,-300.0,0.00033751,2]
[426692460,1782747049000,-300.0,0.00033751,2]
[426692462,1782747049000,-300.0,0.00033751,2]
[426692464,1782747049000,-300.0,0.00033751,2]
[426692471,1782747049000,-300.0,0.00033751,2]
[426692452,1782747049000,-454.26701287,0.00033751,2]
[426692463,1782747049000,-300.0,0.00033751,2]
[426692459,1782747049000,-446.09705538,0.00033751,2]
[426692480,1782747049000,-300.0,0.00033751,2]
[426692483,1782747049000,-300.0,0.00033751,2]
[426692472,1782747049000,-300.0,0.00033751,2]
[426692473,1782747049000,-300.0,0.00033751,2]
[426692475,1782747049000,-300.0,0.00033751,2]
[426692468,1782747049000,-300.0,0.00033751,2]
[426692461,1782747049000,-300.0,0.00033751,2]
[426692467,1782747049000,-300.0,0.00033751,2]
[426692465,1782747049000,-300.0,0.00033751,2]
[426692474,1782747049000,-300.0,0.00033751,2]
[426692466,1782747049000,-1101.0618519,0.00033751,2]
[426692469,1782747049000,-300.0,0.00033751,2]
[426692556,1782747050000,-261.34860366,0.00034,2]
[426692542,1782747050000,-150.0,0.00033782,30]
[426692535,1782747050000,-300.0,0.00033751,2]
[426692539,1782747050000,-152.5674494,0.00033754,60]
[426692544,1782747050000,-150.0,0.00033884,30]
[426692546,1782747050000,-151.0,0.000339,7]
[426692543,1782747050000,-386.33,0.00033805,3]
[426692547,1782747050000,-151.0,0.000339,7]
[426692545,1782747050000,-368.51,0.000339,120]
[426692540,1782747050000,-955.7894779,0.00033754,60]
[426692541,1782747050000,-176.4163442,0.00033754,60]
[426692554,1782747050000,-150.0,0.00033985,30]
[426692549,1782747050000,-152.0,0.000339,7]
[426692550,1782747050000,-151.0,0.000339,7]
[426692548,1782747050000,-151.0,0.000339,7]
[426692557,1782747050000,-150.0,0.00034002,2]
[426692555,1782747050000,-150.0,0.00033985,30]
[426692552,1782747050000,-502.0,0.00033925,17]
[426692551,1782747050000,-151.0,0.000339,7]